fUST/lending_fUST_20240912
["ID","MTS","AMOUNT","RATE_DAILY","PERIOD"]
[337818807,1726131067659,-500.0,0.00018356,2]
[337818808,1726131067668,-500.0,0.00018356,2]
[337818809,1726131067678,-151.0,0.00018356,2]
[337818810,1726131067687,-500.0,0.00018356,2]
[337818811,1726131067696,-162.044293,0.00018356,2]
[337818812,1726131067707,-715.52,0.00018356,2]
[337818813,1726131067717,-500.0,0.00018356,2]
[337818814,1726131067727,-697.579169,0.00018356,2]
[337818815,1726131067737,-582.64,0.00018356,2]
[337818816,1726131067747,-559.53,0.00018356,2]
[337818817,1726131067757,-697.579169,0.00018356,2]
[337818818,1726131067768,-592.34,0.00018356,2]
[337818819,1726131067777,-500.0,0.00018356,2]
[337818820,1726131067786,-500.0,0.00018356,2]
[337818821,1726131067795,-629.47,0.00018356,2]
[337818822,1726131067805,-500.0,0.00018356,2]
[337818823,1726131067815,-500.0,0.00018356,2]
[337818824,1726131067824,-151.0,0.00018356,2]
[337818825,1726131067833,-500.0,0.00018356,2]
[337818826,1726131067842,-1.38118391,0.00018356,2]
[337818827,1726131068266,-151.37378064,0.00016473,2]
[337818828,1726131068284,-667.82,0.00017808,2]
[337818829,1726131068295,-667.82,0.00018082,2]
[337818830,1726131068304,-498.61881609,0.00018356,2]
[337818831,1726131068315,-500.0,0.00018356,2]
[337818832,1726131068325,-500.0,0.00018356,2]
[337818833,1726131068335,-500.0,0.00018356,2]
[337818834,1726131068344,-500.0,0.00018356,2]
[337818835,1726131068354,-500.0,0.00018356,2]
[337818836,1726131068364,-617.48,0.00018356,2]
[337818837,1726131068374,-500.0,0.00018356,2]
[337818838,1726131068386,-253.24505313,0.00018356,2]
[337818839,1726131068400,-400.09494687,0.00018356,2]
[337818840,1726131068409,-0.10545706,0.00018356,2]
[337818841,1726131068429,-5916.39012494,0.00018356,2]
[337818842,1726131068439,-675.38,0.00018356,2]
[337818843,1726131068448,-807.1,0.00018356,2]
[337818844,1726131068458,-5916.495582,0.00018356,2]
[337818845,1726131068468,-787.31,0.00018356,2]
[337818846,1726131068479,-500.0,0.00018356,2]
[337818847,1726131068488,-500.0,0.00018356,2]
[337818848,1726131068498,-500.0,0.00018356,2]
[337818849,1726131068508,-1393.23,0.00018356,2]
[337818850,1726131068520,-500.0,0.00018356,2]
[337818851,1726131068529,-734.5,0.00018356,2]
[337818852,1726131068538,-541.1,0.00018356,2]
[337818853,1726131068548,-500.0,0.00018356,2]
[337818854,1726131068558,-719.64,0.00018356,2]
[337818855,1726131068567,-690.44,0.00018356,2]
[337818856,1726131068576,-862.19,0.00018356,2]
[337818857,1726131068585,-516.92,0.00018356,2]
[337818858,1726131068594,-720.11,0.00018356,2]
[337818859,1726131068603,-4891.15,0.00018356,2]
[337818860,1726131068612,-751.57,0.00018356,2]
[337818861,1726131068622,-686.93,0.00018356,2]
[337818862,1726131068631,-1101.98,0.00018356,2]
[337818863,1726131068640,-500.0,0.00018356,2]
[337818864,1726131068650,-500.0,0.00018356,2]
[337818865,1726131068659,-500.0,0.00018356,2]
[337818866,1726131068668,-610.17,0.00018356,2]
[337818867,1726131068677,-670.2,0.00018356,2]
[337818868,1726131068687,-1053.58,0.00018356,2]
[337818869,1726131068697,-3990.07,0.00018356,2]
[337818870,1726131068706,-8996.43,0.00018356,2]
[337818871,1726131068717,-500.0,0.00018356,2]
[337818872,1726131068727,-1532.76,0.00018356,2]
[337818873,1726131068736,-551.17,0.00018356,2]
[337818874,1726131068745,-1009.79,0.00018356,2]
[337818875,1726131068755,-500.0,0.00018356,2]
[337818876,1726131068765,-513.87,0.00018356,2]
[337818877,1726131068774,-800.64,0.00018356,2]
[337818878,1726131068783,-935.62,0.00018356,2]
[337818879,1726131068792,-500.0,0.00018356,2]
[337818880,1726131068802,-659.81,0.00018356,2]
[337818881,1726131068814,-500.0,0.00018356,2]
[337818882,1726131068824,-500.0,0.00018356,2]
[337818883,1726131068836,-500.0,0.00018356,2]
[337818884,1726131068846,-500.0,0.00018356,2]
[337818885,1726131068858,-618.89,0.00018356,2]
[337818886,1726131068870,-667.82,0.00018356,2]
[337818887,1726131068879,-150.0,0.00018455,2]
[337818888,1726131068889,-306.0,0.00018466,2]
[337818889,1726131068898,-208.2649181,0.00018466,2]
[337818890,1726131068907,-150.01,0.00018629,2]
[337818891,1726131068917,-3048.97206025,0.00018629,2]
[337818892,1726131068926,-151.0,0.0001863,2]
[337818893,1726131068935,-151.0,0.0001863,2]
[337818894,1726131068945,-151.0,0.0001863,2]
[337818895,1726131068955,-849.41,0.0001863,2]
[337818896,1726131068964,-151.0,0.0001863,2]
[337818897,1726131068973,-151.0,0.0001863,2]
[337818898,1726131068982,-151.0,0.0001863,2]
[337818899,1726131068991,-197.913118,0.0001863,2]
[337818900,1726131069001,-197.913118,0.0001863,2]
[337818901,1726131069012,-151.0,0.0001863,2]
[337818902,1726131069021,-185.435125,0.0001863,2]
[337818903,1726131069031,-185.435125,0.0001863,2]
[337818904,1726131069040,-500.0,0.0001863,2]
[337818905,1726131069050,-500.0,0.0001863,2]
[337818906,1726131069059,-500.0,0.0001863,2]
[337818907,1726131069068,-614.29,0.0001863,2]
[337818908,1726131069078,-536.87,0.0001863,2]
[337818909,1726131069087,-151.0,0.0001863,2]
[337818910,1726131069096,-256.064203,0.0001863,2]
[337818911,1726131069106,-500.0,0.0001863,2]
[337818912,1726131069118,-817.17,0.0001863,2]
[337818913,1726131069129,-500.0,0.0001863,2]
[337818914,1726131069138,-785.260894,0.0001863,2]
[337818915,1726131069147,-492.5887485,0.0001863,2]
[337818916,1726131069156,-500.0,0.0001863,2]
[337818917,1726131069166,-785.260894,0.0001863,2]
[337818918,1726131069175,-617.64,0.0001863,2]
[337818919,1726131069184,-1279.9,0.0001863,2]
[337818920,1726131069195,-500.0,0.0001863,2]
[337818921,1726131069204,-151.0,0.0001863,2]
[337818922,1726131069213,-793.33,0.0001863,2]
[337818923,1726131069223,-500.0,0.0001863,2]
[337818924,1726131069233,-500.0,0.0001863,2]
[337818925,1726131069242,-500.0,0.0001863,2]
[337818926,1726131069251,-500.0,0.0001863,2]
[337818927,1726131069259,-500.0,0.0001863,2]
[337818928,1726131069268,-500.0,0.0001863,2]
[337818929,1726131069278,-599.07,0.0001863,2]
[337818930,1726131069288,-151.0,0.0001863,2]
[337818931,1726131069298,-594.71,0.0001863,2]
[337818932,1726131069307,-500.0,0.0001863,2]
[337818933,1726131069317,-745.01,0.0001863,2]
[337818934,1726131069327,-580.85,0.0001863,2]
[337818935,1726131069337,-151.0,0.0001863,2]
[337818936,1726131069346,-601.07,0.0001863,2]
[337818937,1726131069356,-779.69,0.0001863,2]
[337818938,1726131069365,-508.30871851,0.0001863,2]
[337818939,1726131069375,-164.341537,0.0001863,2]
[337818940,1726131069385,-506.14,0.0001863,2]
[337818941,1726131069394,-151.0,0.0001863,2]
[337818942,1726131069404,-151.0,0.0001863,2]
[337818943,1726131069413,-500.0,0.0001863,2]
[337818944,1726131069423,-635.867684,0.0001863,2]
[337818945,1726131069432,-635.867684,0.0001863,2]
[337818946,1726131069442,-1433.25141,0.0001863,2]
[337818947,1726131069452,-1116.841641,0.0001863,2]
[337818948,1726131069462,-1116.841641,0.0001863,2]
[337818949,1726131069471,-151.0,0.0001863,2]
[337818950,1726131069481,-151.0,0.0001863,2]
[337818951,1726131069491,-151.0,0.0001863,2]
[337818952,1726131069501,-1106.33,0.0001863,2]
[337818953,1726131069511,-500.0,0.0001863,2]
[337818954,1726131069521,-211.419149,0.0001863,2]
[337818955,1726131069531,-211.419149,0.0001863,2]
[337818956,1726131069540,-500.0,0.0001863,2]
[337818957,1726131069549,-1034.906807,0.0001863,2]
[337818958,1726131069559,-1034.906807,0.0001863,2]
[337818959,1726131069568,-500.0,0.0001863,2]
[337818960,1726131069578,-500.0,0.0001863,2]
[337818961,1726131069587,-500.0,0.0001863,2]
[337818962,1726131069597,-500.0,0.0001863,2]
[337818963,1726131069606,-760.99,0.0001863,2]
[337818964,1726131069615,-762.35,0.0001863,2]
[337818965,1726131069624,-738.28,0.0001863,2]
[337818966,1726131069633,-500.0,0.0001863,2]
[337818967,1726131069642,-500.0,0.0001863,2]
[337818968,1726131069651,-7681.4,0.0001863,2]
[337818969,1726131069661,-613.21,0.0001863,2]
[337818970,1726131069671,-500.0,0.0001863,2]
[337818971,1726131069681,-641.6,0.0001863,2]
[337818972,1726131069691,-500.0,0.0001863,2]
[337818973,1726131069701,-500.0,0.0001863,2]
[337818974,1726131069711,-500.0,0.0001863,2]
[337818975,1726131069720,-500.0,0.0001863,2]
[337818976,1726131069730,-715.52,0.0001863,2]
[337818977,1726131069740,-500.0,0.0001863,2]
[337818978,1726131069749,-582.64,0.0001863,2]
[337818979,1726131069758,-559.53,0.0001863,2]
[337818980,1726131069768,-592.34,0.0001863,2]
[337818981,1726131069778,-603.556849,0.0001863,2]
[337818982,1726131069787,-603.556849,0.0001863,2]
[337818983,1726131069798,-500.0,0.0001863,2]
[337818984,1726131069807,-500.0,0.0001863,2]
[337818985,1726131069816,-629.47,0.0001863,2]
[337818986,1726131069826,-500.0,0.0001863,2]
[337818987,1726131069835,-157.678452,0.0001863,2]
[337818988,1726131069846,-500.0,0.0001863,2]
[337818989,1726131069857,-500.0,0.0001863,2]
[337818990,1726131069867,-500.0,0.0001863,2]
[337818991,1726131069877,-500.0,0.0001863,2]
[337818992,1726131069887,-500.0,0.0001863,2]
[337818993,1726131069897,-500.0,0.0001863,2]
[337818994,1726131069907,-500.0,0.0001863,2]
[337818995,1726131069916,-379.855255,0.0001863,2]
[337818996,1726131069925,-379.855255,0.0001863,2]
[337818997,1726131069937,-500.0,0.0001863,2]
[337818998,1726131069947,-500.0,0.0001863,2]
[337818999,1726131069957,-653.34,0.0001863,2]
[337819000,1726131069967,-675.38,0.0001863,2]
[337819001,1726131069977,-807.1,0.0001863,2]
[337819002,1726131069986,-787.31,0.0001863,2]
[337819003,1726131069996,-500.0,0.0001863,2]
[337819004,1726131070007,-500.0,0.0001863,2]
[337819005,1726131070017,-1393.23,0.0001863,2]
[337819006,1726131070026,-500.0,0.0001863,2]
[337819007,1726131070035,-734.5,0.0001863,2]
[337819008,1726131070044,-541.1,0.0001863,2]
[337819009,1726131070054,-500.0,0.0001863,2]
[337819010,1726131070065,-719.64,0.0001863,2]
[337819011,1726131070074,-690.44,0.0001863,2]
[337819012,1726131070085,-862.19,0.0001863,2]
[337819013,1726131070094,-151.0,0.0001863,2]
[337819014,1726131070106,-516.92,0.0001863,2]
[337819015,1726131070121,-720.11,0.0001863,2]
[337819016,1726131070131,-4891.15,0.0001863,2]
[337819017,1726131070142,-751.57,0.0001863,2]
[337819018,1726131070152,-686.93,0.0001863,2]
[337819019,1726131070162,-1101.98,0.0001863,2]
[337819020,1726131070171,-500.0,0.0001863,2]
[337819021,1726131070181,-500.0,0.0001863,2]
[337819022,1726131070190,-500.0,0.0001863,2]
[337819023,1726131070199,-610.17,0.0001863,2]
[337819024,1726131070209,-670.2,0.0001863,2]
[337819025,1726131070218,-1053.58,0.0001863,2]
[337819026,1726131070227,-3990.07,0.0001863,2]
[337819027,1726131070237,-8996.43,0.0001863,2]
[337819028,1726131070247,-500.0,0.0001863,2]
[337819029,1726131070256,-10000.0,0.0001863,2]
[337819030,1726131070266,-1532.76,0.0001863,2]
[337819031,1726131070275,-551.17,0.0001863,2]
[337819032,1726131070286,-1009.79,0.0001863,2]
[337819033,1726131070296,-10000.0,0.0001863,2]
[337819034,1726131070305,-10000.0,0.0001863,2]
[337819035,1726131070316,-500.0,0.0001863,2]
[337819036,1726131070325,-10000.0,0.0001863,2]
[337819037,1726131070337,-513.87,0.0001863,2]
[337819038,1726131070346,-800.64,0.0001863,2]
[337819039,1726131070355,-935.62,0.0001863,2]
[337819040,1726131070364,-500.0,0.0001863,2]
[337819041,1726131070374,-659.81,0.0001863,2]
[337819042,1726131070383,-500.0,0.0001863,2]
[337819043,1726131070392,-559.05280134,0.0001863,2]
[337819044,1726131070401,-500.0,0.0001863,2]
[337819045,1726131070410,-547.51446424,0.0001863,2]
[337819046,1726131070420,-618.89,0.0001863,2]
[337819047,1726131070430,-667.82,0.0001863,2]
[337819048,1726131070441,-513.42229576,0.00018792,2]
[337819049,1726131070451,-849.41,0.00018904,2]
[337819050,1726131070462,-514.176891,0.00018904,2]
[337819051,1726131070475,-500.0,0.00018904,2]
[337819052,1726131070484,-190.935416,0.00018904,2]
[337819053,1726131070493,-439.6423977,0.00018904,2]
[337819054,1726131070502,-151.0,0.00018904,2]
[337819055,1726131070512,-151.0,0.00018904,2]
[337819056,1726131070521,-614.29,0.00018904,2]
[337819057,1726131070530,-536.87,0.00018904,2]
[337819058,1726131070540,-500.0,0.00018904,2]
[337819059,1726131070549,-817.17,0.00018904,2]
[337819060,1726131070558,-500.0,0.00018904,2]
[337819061,1726131070567,-500.0,0.00018904,2]
[337819062,1726131070577,-617.64,0.00018904,2]
[337819063,1726131070586,-1279.9,0.00018904,2]
[337819064,1726131070595,-500.0,0.00018904,2]
[337819065,1726131070604,-793.33,0.00018904,2]
[337819066,1726131070613,-500.0,0.00018904,2]
[337819067,1726131070622,-500.0,0.00018904,2]
[337819068,1726131070631,-234.50236584,0.00018904,2]
[337819069,1726131070641,-200.04545861,0.00018904,2]
[337819070,1726131070650,-637.22760074,0.00018904,2]
[337819071,1726131070660,-500.0,0.00018904,2]
[337819072,1726131070670,-599.07,0.00018904,2]
[337819073,1726131070679,-594.71,0.00018904,2]
[337819074,1726131070688,-500.0,0.00018904,2]
[337819075,1726131070698,-745.01,0.00018904,2]
[337819076,1726131070707,-580.85,0.00018904,2]
[337819077,1726131070716,-601.07,0.00018904,2]
[337819078,1726131070726,-779.69,0.00018904,2]
[337819079,1726131070736,-506.14,0.00018904,2]
[337819080,1726131070745,-500.0,0.00018904,2]
[337819081,1726131070755,-697.699414,0.00018904,2]
[337819082,1726131070765,-697.699414,0.00018904,2]
[337819083,1726131070775,-1106.33,0.00018904,2]
[337819084,1726131070784,-151.0,0.00018904,2]
[337819085,1726131070793,-500.0,0.00018904,2]
[337819086,1726131070803,-500.0,0.00018904,2]
[337819087,1726131070812,-151.0,0.00018904,2]
[337819088,1726131070821,-151.0,0.00018904,2]
[337819089,1726131070831,-500.0,0.00018904,2]
[337819090,1726131070842,-500.0,0.00018904,2]
[337819091,1726131070851,-423.05,0.00018904,2]
[337819092,1726131070861,-500.0,0.00018904,2]
[337819093,1726131070871,-760.99,0.00018904,2]
[337819094,1726131070881,-762.35,0.00018904,2]
[337819095,1726131070890,-500.0,0.00018904,2]
[337819096,1726131070899,-738.28,0.00018904,2]
[337819097,1726131070907,-500.0,0.00018904,2]
[337819098,1726131070916,-7681.4,0.00018904,2]
[337819099,1726131070926,-613.21,0.00018904,2]
[337819100,1726131070935,-500.0,0.00018904,2]
[337819101,1726131070945,-641.6,0.00018904,2]
[337819102,1726131071076,-500.0,0.00018904,2]
[337819103,1726131071086,-500.0,0.00018904,2]
[337819104,1726131071095,-500.0,0.00018904,2]
[337819105,1726131071104,-500.0,0.00018904,2]
[337819106,1726131071114,-715.52,0.00018904,2]
[337819107,1726131071127,-500.0,0.00018904,2]
[337819108,1726131071136,-582.64,0.00018904,2]
[337819109,1726131071146,-559.53,0.00018904,2]
[337819110,1726131071156,-592.34,0.00018904,2]
[337819111,1726131071167,-169.84778261,0.00018904,2]
[337819112,1726131071176,-629.47,0.00018904,2]
[337819113,1726131071185,-500.0,0.00018904,2]
[337819114,1726131071194,-500.0,0.00018904,2]
[337819115,1726131071203,-500.0,0.00018904,2]
[337819116,1726131071213,-500.0,0.00018904,2]
[337819117,1726131071222,-500.0,0.00018904,2]
[337819118,1726131071231,-609.02,0.00018904,2]
[337819119,1726131071241,-472.01,0.00018904,2]
[337819120,1726131071250,-500.0,0.00018904,2]
[337819121,1726131071260,-639.0694179,0.00018904,2]
[337819122,1726131071270,-500.0,0.00018904,2]
[337819123,1726131071279,-653.34,0.00018904,2]
[337819124,1726131071289,-675.38,0.00018904,2]
[337819125,1726131071299,-807.1,0.00018904,2]
[337819126,1726131071308,-787.31,0.00018904,2]
[337819127,1726131071317,-500.0,0.00018904,2]
[337819128,1726131071326,-500.0,0.00018904,2]
[337819129,1726131071336,-1393.23,0.00018904,2]
[337819130,1726131071346,-500.0,0.00018904,2]
[337819131,1726131071355,-734.5,0.00018904,2]
[337819132,1726131071365,-541.1,0.00018904,2]
[337819133,1726131071374,-500.0,0.00018904,2]
[337819134,1726131071383,-719.64,0.00018904,2]
[337819135,1726131071393,-690.44,0.00018904,2]
[337819136,1726131071402,-862.19,0.00018904,2]
[337819137,1726131071411,-516.92,0.00018904,2]
[337819138,1726131071420,-720.11,0.00018904,2]
[337819139,1726131071429,-148.90626533,0.00018904,2]
[337819140,1726131071771,-500.0,0.00016438,2]
[337819141,1726131071782,-500.0,0.00016438,2]
[337819142,1726131071794,-500.0,0.00016438,2]
[337819143,1726131071804,-500.0,0.00016712,2]
[337819144,1726131071816,-500.0,0.00016712,2]
[337819145,1726131071827,-500.0,0.00016986,2]
[337819146,1726131071837,-500.0,0.00016986,2]
[337819147,1726131071846,-500.0,0.0001726,2]
[337819148,1726131071856,-500.0,0.00017534,2]
[337819149,1726131071867,-4742.24373467,0.00018904,2]
[337819150,1726131071876,-751.57,0.00018904,2]
[337819151,1726131071885,-686.93,0.00018904,2]
[337819152,1726131071895,-1101.98,0.00018904,2]
[337819153,1726131071905,-500.0,0.00018904,2]
[337819154,1726131071915,-500.0,0.00018904,2]
[337819155,1726131071925,-500.0,0.00018904,2]
[337819156,1726131071934,-610.17,0.00018904,2]
[337819157,1726131071943,-670.2,0.00018904,2]
[337819158,1726131071953,-1053.58,0.00018904,2]
[337819159,1726131071962,-3990.07,0.00018904,2]
[337819160,1726131071972,-8996.43,0.00018904,2]
[337819161,1726131071983,-500.0,0.00018904,2]
[337819162,1726131071993,-1532.76,0.00018904,2]
[337819163,1726131072005,-551.17,0.00018904,2]
[337819164,1726131072015,-1009.79,0.00018904,2]
[337819165,1726131072028,-500.0,0.00018904,2]
[337819166,1726131072039,-513.87,0.00018904,2]
[337819167,1726131072048,-800.64,0.00018904,2]
[337819168,1726131072059,-935.62,0.00018904,2]
[337819169,1726131072070,-500.0,0.00018904,2]
[337819170,1726131072082,-659.81,0.00018904,2]
[337819171,1726131072092,-500.0,0.00018904,2]
[337819172,1726131072103,-500.0,0.00018904,2]
[337819173,1726131072115,-618.89,0.00018904,2]
[337819174,1726131072132,-667.82,0.00018904,2]
[337819175,1726131072143,-2113.63422458,0.00018908,2]
[337819176,1726131072153,-500.0,0.00019,2]
[337819177,1726131072165,-500.0,0.00019,2]
[337819178,1726131072176,-615.172887,0.00019168,2]
[337819179,1726131072186,-615.172887,0.00019168,2]
[337819180,1726131072198,-379.306066,0.00019168,2]
[337819181,1726131072208,-379.306066,0.00019168,2]
[337819182,1726131072217,-151.0,0.00019178,2]
[337819183,1726131072227,-849.41,0.00019178,2]
[337819184,1726131072236,-500.0,0.00019178,2]
[337819185,1726131072245,-603.651484,0.00019178,2]
[337819186,1726131072255,-603.651484,0.00019178,2]
[337819187,1726131072267,-614.29,0.00019178,2]
[337819188,1726131072281,-536.87,0.00019178,2]
[337819189,1726131072290,-500.0,0.00019178,2]
[337819190,1726131072299,-817.17,0.00019178,2]
[337819191,1726131072308,-500.0,0.00019178,2]
[337819192,1726131072317,-500.0,0.00019178,2]
[337819193,1726131072327,-617.64,0.00019178,2]
[337819194,1726131072336,-500.0,0.00019178,2]
[337819195,1726131072345,-793.33,0.00019178,2]
[337819196,1726131072354,-506.309595,0.00019178,2]
[337819197,1726131072364,-506.309595,0.00019178,2]
[337819198,1726131072373,-500.0,0.00019178,2]
[337819199,1726131072382,-574.35611374,0.00019178,2]
[337819200,1726131072392,-151.0,0.00019178,2]
[337819201,1726131072403,-151.0,0.00019178,2]
[337819202,1726131072414,-500.0,0.00019178,2]
[337819203,1726131072425,-599.07,0.00019178,2]
[337819204,1726131072437,-594.71,0.00019178,2]
[337819205,1726131072448,-500.0,0.00019178,2]
[337819206,1726131072458,-745.01,0.00019178,2]
[337819207,1726131072468,-580.85,0.00019178,2]
[337819208,1726131072479,-601.07,0.00019178,2]
[337819209,1726131072488,-779.69,0.00019178,2]
[337819210,1726131072498,-506.14,0.00019178,2]
[337819211,1726131072508,-559.287003,0.00019178,2]
[337819212,1726131072519,-500.0,0.00019178,2]
[337819213,1726131072531,-559.287003,0.00019178,2]
[337819214,1726131072542,-151.0,0.00019178,2]
[337819215,1726131072553,-1106.33,0.00019178,2]
[337819216,1726131072563,-500.0,0.00019178,2]
[337819217,1726131072574,-211.419149,0.00019178,2]
[337819218,1726131072586,-211.419149,0.00019178,2]
[337819219,1726131072596,-500.0,0.00019178,2]
[337819220,1726131072606,-1034.906807,0.00019178,2]
[337819221,1726131072617,-1034.906807,0.00019178,2]
[337819222,1726131072628,-500.0,0.00019178,2]
[337819223,1726131072640,-408.480547,0.00019178,2]
[337819224,1726131072650,-408.480547,0.00019178,2]
[337819225,1726131072659,-843.199947,0.00019178,2]
[337819226,1726131072668,-843.199947,0.00019178,2]
[337819227,1726131072677,-154.604882,0.00019178,2]
[337819228,1726131072687,-500.0,0.00019178,2]
[337819229,1726131072699,-500.0,0.00019178,2]
[337819230,1726131072710,-151.0,0.00019178,2]
[337819231,1726131072720,-760.99,0.00019178,2]
[337819232,1726131072730,-762.35,0.00019178,2]
[337819233,1726131072741,-500.0,0.00019178,2]
[337819234,1726131072752,-738.28,0.00019178,2]
[337819235,1726131072765,-500.0,0.00019178,2]
[337819236,1726131072775,-613.21,0.00019178,2]
[337819237,1726131072786,-500.0,0.00019178,2]
[337819238,1726131072798,-641.6,0.00019178,2]
[337819239,1726131072809,-500.0,0.00019178,2]
[337819240,1726131072819,-500.0,0.00019178,2]
[337819241,1726131072829,-500.0,0.00019178,2]
[337819242,1726131072838,-151.0,0.00019178,2]
[337819243,1726131072847,-500.0,0.00019178,2]
[337819244,1726131072860,-715.52,0.00019178,2]
[337819245,1726131072871,-500.0,0.00019178,2]
[337819246,1726131072880,-697.579169,0.00019178,2]
[337819247,1726131072891,-582.64,0.00019178,2]
[337819248,1726131072902,-559.53,0.00019178,2]
[337819249,1726131072913,-697.579169,0.00019178,2]
[337819250,1726131072923,-592.34,0.00019178,2]
[337819251,1726131072934,-629.47,0.00019178,2]
[337819252,1726131072946,-580.66748075,0.00019178,2]
[337819253,1726131072957,-500.0,0.00019178,2]
[337819254,1726131072969,-151.0,0.00019178,2]
[337819255,1726131072979,-500.0,0.00019178,2]
[337819256,1726131072989,-500.0,0.00019178,2]
[337819257,1726131073000,-500.0,0.00019178,2]
[337819258,1726131073010,-379.855255,0.00019178,2]
[337819259,1726131073031,-500.0,0.00019178,2]
[337819260,1726131073043,-379.855255,0.00019178,2]
[337819261,1726131073054,-653.34,0.00019178,2]
[337819262,1726131073063,-1231.77966178,0.00019178,2]
[337819264,1726131074453,-500.0,0.00016307,2]
[337819265,1726131074463,-500.0,0.00016307,2]
[337819266,1726131074472,-188.91866587,0.00016307,2]
[337819267,1726131074482,-500.0,0.00016307,2]
[337819268,1726131074492,-500.0,0.00016307,2]
[337819269,1726131074501,-500.0,0.00016307,2]
[337819270,1726131074510,-500.0,0.00016307,2]
[337819271,1726131074520,-500.0,0.00016307,2]
[337819272,1726131074530,-500.0,0.00016307,2]
[337819273,1726131074539,-500.0,0.00016307,2]
[337819274,1726131074549,-500.0,0.00016307,2]
[337819275,1726131074558,-500.0,0.00016307,2]
[337819276,1726131074568,-500.0,0.00016307,2]
[337819277,1726131074577,-500.0,0.00016307,2]
[337819278,1726131074589,-500.0,0.00016307,2]
[337819279,1726131074598,-500.0,0.00016307,2]
[337819280,1726131074607,-500.0,0.00016307,2]
[337819281,1726131074617,-500.0,0.00016307,2]
[337819282,1726131074628,-500.0,0.00016307,2]
[337819283,1726131074637,-500.0,0.00016307,2]
[337819284,1726131074648,-500.0,0.00016307,2]
[337819285,1726131074658,-500.0,0.00016307,2]
[337819286,1726131074668,-568.26364349,0.00016307,2]
[337819287,1726131074678,-500.0,0.00016307,2]
[337819288,1726131074687,-500.0,0.00016307,2]
[337819289,1726131074697,-500.0,0.00016307,2]
[337819290,1726131074707,-500.0,0.00016307,2]
[337819291,1726131074716,-500.0,0.00016307,2]
[337819292,1726131074725,-500.0,0.00016307,2]
[337819293,1726131074735,-500.0,0.00016307,2]
[337819294,1726131074745,-500.0,0.00016307,2]
[337819295,1726131074754,-500.0,0.00016307,2]
[337819296,1726131074764,-500.0,0.00016307,2]
[337819297,1726131074773,-500.0,0.00016307,2]
[337819298,1726131074782,-507.6732107,0.00016307,2]
[337819299,1726131074792,-500.0,0.00016307,2]
[337819300,1726131074801,-500.0,0.00016307,2]
[337819301,1726131074810,-500.0,0.00016307,2]
[337819302,1726131074819,-500.0,0.00016307,2]
[337819303,1726131074828,-500.0,0.00016307,2]
[337819304,1726131074838,-500.0,0.00016307,2]
[337819305,1726131074847,-500.0,0.00016307,2]
[337819306,1726131074858,-500.0,0.00016307,2]
[337819307,1726131074868,-500.0,0.00016307,2]